bitfinex-derivatives/quotes_BTCF0:USTF0_20251128
["timestamp","ask_amount","ask_price","bid_price","bid_amount"]
[1764326226930,0.3608,91650.0,91649.0,0.0552022]
[1764326227134,0.38908,91660.0,91659.0,0.055201]
[1764326227337,0.3608,91660.0,91659.0,0.055201]
[1764326228530,0.3628,91660.0,91659.0,0.055201]
[1764326231533,0.39108,91660.0,91659.0,0.055201]
[1764326233149,0.39108,91660.0,91659.0,0.07058383]
[1764326234044,0.78108,91660.0,91659.0,0.01538283]
[1764326234244,0.78108,91660.0,91659.0,0.02267]
[1764326234445,0.78108,91660.0,91659.0,0.04429]
[1764326234639,0.77908,91660.0,91659.0,0.04429]
[1764326234834,0.78008,91660.0,91659.0,0.04429]
[1764326235846,0.51008,91660.0,91659.0,0.04429]
[1764326236740,0.51108,91660.0,91659.0,0.04429]
[1764326237451,0.51008,91660.0,91659.0,0.04429]
[1764326237750,0.39008,91660.0,91659.0,0.04429]
[1764326237950,0.38908,91660.0,91659.0,0.04429]
[1764326238152,0.39108,91660.0,91659.0,0.04429]
[1764326239751,0.39008,91660.0,91659.0,0.04429]
[1764326240053,0.38908,91660.0,91659.0,0.02267]
[1764326240251,0.39008,91660.0,91659.0,0.02267]
[1764326240450,0.39008,91660.0,91659.0,0.04557]
[1764326240651,0.38908,91660.0,91659.0,0.04557]
[1764326240847,0.39008,91660.0,91659.0,0.04557]
[1764326241050,0.4009909,91660.0,91659.0,0.04557]
[1764326241237,0.3999909,91660.0,91659.0,0.04557]
[1764326241442,0.4009909,91660.0,91659.0,0.04557]
[1764326242751,0.3999909,91660.0,91659.0,0.04557]
[1764326242955,0.4019909,91660.0,91659.0,0.04557]
[1764326243348,0.3999909,91660.0,91659.0,0.04557]
[1764326243653,0.4019909,91660.0,91659.0,0.02267]
[1764326243856,0.39108,91660.0,91659.0,0.04557]
[1764326244652,0.39208,91660.0,91659.0,0.04557]
[1764326246349,0.39008,91660.0,91659.0,0.04557]
[1764326246857,0.38908,91660.0,91659.0,0.04557]
[1764326247059,0.39108,91660.0,91659.0,0.04557]
[1764326247459,0.38908,91660.0,91659.0,0.04557]
[1764326247756,0.39208,91660.0,91659.0,0.04557]
[1764326249046,0.38908,91660.0,91659.0,0.04557]
[1764326249249,0.39208,91660.0,91659.0,0.04557]
[1764326249451,0.039191,91659.0,91658.0,0.0485324]
[1764326249758,0.039191,91659.0,91658.0,0.0714324]
[1764326250860,0.042191,91659.0,91658.0,0.0714324]
[1764326254359,0.42920764,91659.0,91658.0,0.0714324]
[1764326255750,0.42920764,91659.0,91658.0,0.16079918]
[1764326257058,0.402991,91659.0,91658.0,0.16079918]
[1764326257360,0.42925054,91659.0,91658.0,0.16079918]
[1764326258261,0.402991,91659.0,91658.0,0.16079918]
[1764326259966,0.39208,91659.0,91658.0,0.16079918]
[1764326266960,0.03128,91659.0,91658.0,0.16079918]
[1764326267166,0.39208,91659.0,91658.0,0.16079918]
[1764326267368,0.39108,91659.0,91658.0,0.16079918]
[1764326268871,0.39208,91659.0,91658.0,0.16079918]
[1764326269362,0.38908,91659.0,91658.0,0.16079918]
[1764326269565,0.39208,91659.0,91658.0,0.16079918]
[1764326269768,0.39208,91659.0,91658.0,0.0714324]
[1764326269968,0.38908,91659.0,91658.0,0.0714324]
[1764326270172,0.39308,91659.0,91658.0,0.0714324]
[1764326280174,0.39108,91659.0,91658.0,0.0714324]
[1764326280370,0.3628,91659.0,91658.0,0.0714324]
[1764326280580,0.002,91659.0,91658.0,0.0714324]
[1764326281164,0.02844372,91669.0,91668.0,0.06973]
[1764326281370,0.05469954,91669.0,91668.0,0.06973]
[1764326282372,0.02844372,91669.0,91668.0,0.06973]
[1764326282876,0.03344372,91669.0,91668.0,0.06973]
[1764326284670,0.02844372,91669.0,91668.0,0.06973]
[1764326286677,0.01430372,91669.0,91668.0,0.06973]
[1764326287064,0.01430372,91669.0,91668.0,0.0856441]
[1764326288169,0.3608,91689.0,91681.0,0.0109084]
[1764326288374,0.41530012,91682.0,91681.0,0.0558184]
[1764326288670,0.40116012,91682.0,91681.0,0.0558184]
[1764326288878,0.3608,91682.0,91681.0,0.0558184]
[1764326289383,0.3638,91682.0,91681.0,0.0558184]
[1764326290775,0.37794,91682.0,91681.0,0.0558184]
[1764326290974,0.39208,91682.0,91681.0,0.0558184]
[1764326296985,0.4029883,91682.0,91681.0,0.03865029]
[1764326297485,0.4029883,91682.0,91681.0,0.04955869]
[1764326297789,0.4029883,91682.0,91681.0,0.07211869]
[1764326298289,0.37794,91682.0,91681.0,0.07211869]
[1764326298480,0.3638,91682.0,91681.0,0.07211869]
[1764326298680,0.003,91682.0,91681.0,0.07211869]
[1764326310690,0.01714,91682.0,91681.0,0.07211869]
[1764326310892,0.03128,91682.0,91681.0,0.07211869]
[1764326311393,0.01714,91682.0,91681.0,0.07211869]
[1764326311599,0.003,91682.0,91681.0,0.07211869]
[1764326322097,0.03128,91682.0,91681.0,0.07211869]
[1764326350222,0.0421883,91682.0,91681.0,0.07211869]
[1764326354825,0.03128,91682.0,91681.0,0.07211869]
[1764326355419,0.01714,91682.0,91681.0,0.07211869]
[1764326355726,0.03128,91682.0,91681.0,0.07211869]
[1764326360232,0.003,91682.0,91681.0,0.07211869]
[1764326368042,0.3608,91687.0,91685.0,0.0552879]
[1764326369331,0.00127267,91686.0,91685.0,0.0552879]
[1764326374845,0.3608,91706.0,91705.0,0.0109056]
[1764326375049,0.3608,91706.0,91704.0,0.01275]
[1764326375050,0.39762,91716.0,91715.0,0.0551044]
[1764326375345,0.54357692,91716.0,91715.0,0.0551044]
[1764326376344,0.51762,91716.0,91715.0,0.0551044]
[1764326376646,0.3618,91716.0,91715.0,0.0551044]
[1764326376946,0.39862,91716.0,91715.0,0.0551044]
[1764326380549,0.39862,91716.0,91715.0,0.06957067]
[1764326387156,0.80862,91716.0,91715.0,0.02537067]
[1764326387464,0.80862,91716.0,91715.0,0.06957067]
[1764326388158,0.80862,91716.0,91715.0,0.05866627]
[1764326388761,0.80862,91716.0,91715.0,0.03555627]
[1764326389964,0.80862,91716.0,91715.0,0.01446627]
[1764326390264,0.0477244,91715.0,91714.0,0.0109045]
[1764326390465,0.4377244,91715.0,91714.0,0.0109045]
[1764326390662,0.4377244,91715.0,91714.0,0.02519548]
[1764326391349,0.4387244,91715.0,91714.0,0.04628548]
[1764326391555,0.4387244,91715.0,91714.0,0.06939548]
[1764326395357,0.46438057,91715.0,91714.0,0.06939548]
[1764326396565,0.46438465,91715.0,91714.0,0.06939548]
[1764326396969,0.4387244,91715.0,91714.0,0.06939548]
[1764326400871,0.42782,91715.0,91714.0,0.06939548]
[1764326401870,0.001,91715.0,91714.0,0.06939548]
[1764326402866,0.01941,91715.0,91714.0,0.06939548]
[1764326403270,0.02670762,91715.0,91714.0,0.06939548]
[1764326404273,0.04511762,91715.0,91714.0,0.06939548]
[1764326405173,0.06352762,91715.0,91714.0,0.06939548]
[1764326405573,0.02670762,91715.0,91714.0,0.06939548]
[1764326408970,0.04511762,91715.0,91714.0,0.06939548]
[1764326409677,0.02670762,91715.0,91714.0,0.06939548]
[1764326409978,0.02673847,91715.0,91714.0,0.06939548]
[1764326410777,0.04514847,91715.0,91714.0,0.06939548]
[1764326411081,0.001,91715.0,91714.0,0.06939548]
[1764326419399,0.03782,91715.0,91714.0,0.06939548]
[1764326421079,0.45782,91715.0,91714.0,0.01429098]
[1764326421275,0.0477253,91707.0,91706.0,0.00016362]
[1764326421583,0.86407946,91707.0,91706.0,0.00016362]
[1764326422184,0.86407946,91707.0,91706.0,0.02251362]
[1764326422482,0.86507946,91707.0,91706.0,0.04561362]
[1764326423484,0.8395253,91707.0,91706.0,0.04561362]
[1764326424878,0.8395253,91707.0,91706.0,0.05944815]
[1764326426980,0.86506225,91707.0,91706.0,0.05944815]
[1764326432281,0.86506225,91707.0,91706.0,0.01399815]
[1764326432483,0.86506225,91707.0,91706.0,0.03534815]
[1764326432778,0.86506225,91707.0,91706.0,0.05667815]
[1764326437089,0.8395253,91707.0,91706.0,0.05667815]
[1764326445689,0.8395253,91707.0,91706.0,0.06758365]
[1764326448585,0.8395253,91707.0,91706.0,0.05667815]
[1764326450487,0.86508531,91707.0,91706.0,0.05667815]
[1764326472019,1.02590001,91707.0,91706.0,0.05667815]
[1764326475720,1.03680531,91707.0,91706.0,0.05667815]
[1764326477014,1.02590001,91707.0,91706.0,0.05667815]
[1764326477410,0.66510001,91707.0,91706.0,0.05667815]
[1764326485625,0.23510001,91707.0,91706.0,0.05667815]
[1764326485829,0.68510001,91707.0,91706.0,0.05667815]
[1764326487131,0.65954,91707.0,91706.0,0.05667815]
[1764326491343,0.20954,91707.0,91706.0,0.05667815]
[1764326494837,0.20954,91707.0,91706.0,0.01399815]
[1764326495043,0.20954,91707.0,91691.0,0.07836629]
[1764326495044,0.0477271,91692.0,91691.0,0.07836629]
[1764326495333,0.0477278,91686.0,91685.0,0.07836629]
[1764326495528,0.0477288,91678.0,91677.0,0.09939629]
[1764326495725,0.4677288,91678.0,91677.0,0.12072629]
[1764326495935,0.4677288,91678.0,91677.0,0.04236]
[1764326496341,0.4177288,91678.0,91677.0,0.04236]
[1764326496534,0.0477288,91678.0,91677.0,0.04236]
[1764326496735,0.4377288,91678.0,91677.0,0.04236]
[1764326497539,0.4377288,91678.0,91677.0,0.04736]
[1764326497941,0.4377288,91678.0,91677.0,0.04336]
[1764326498138,0.4377288,91678.0,91677.0,0.04636]
[1764326498539,0.4377288,91678.0,91677.0,0.04536]
[1764326503937,0.0477288,91678.0,91677.0,0.04536]
[1764326505244,0.0477288,91678.0,91677.0,0.04436]
[1764326506340,0.37921,91681.0,91680.0,0.04236]
[1764326506541,0.00016362,91687.0,91686.0,0.0659878]
[1764326510343,0.00016362,91687.0,91686.0,0.4267878]
[1764326511245,0.03698362,91687.0,91686.0,0.4267878]
[1764326511437,0.03698362,91687.0,91686.0,0.05508]
[1764326515644,0.03698362,91687.0,91686.0,0.07081683]
[1764326516148,0.03698362,91687.0,91686.0,0.01573683]
[1764326516149,0.41698362,91687.0,91686.0,0.01573683]
[1764326516349,0.03682,91683.0,91682.0,0.0532682]
[1764326517447,0.0477282,91683.0,91682.0,0.0532682]
[1764326517838,0.0477282,91683.0,91682.0,0.0542682]
[1764326529353,0.0477282,91683.0,91682.0,0.04336]
[1764326545868,0.4677282,91683.0,91682.0,0.04336]
[1764326546667,0.4677282,91683.0,91682.0,0.001]
[1764326546962,0.49393273,91683.0,91682.0,0.001]
[1764326547366,0.4677282,91683.0,91682.0,0.001]
[1764326547871,0.4939252,91683.0,91682.0,0.001]
[1764326548170,0.0477284,91681.0,91680.0,0.06134053]
[1764326548369,0.4477284,91681.0,91680.0,0.04485]
[1764326549368,0.4477284,91681.0,91680.0,0.04585]
[1764326552060,0.4477284,91681.0,91680.0,0.001]
[1764326553375,0.4477284,91681.0,91680.0,0.02389]
[1764326554471,0.4477284,91681.0,91680.0,0.02289]
[1764326555172,0.4477284,91681.0,91680.0,0.04468]
[1764326555767,0.4477284,91681.0,91680.0,0.05859]
[1764326557672,0.07682,91681.0,91680.0,0.05859]
[1764326558677,0.03682,91681.0,91680.0,0.05859]
[1764326558873,0.43682,91681.0,91680.0,0.05859]
[1764326559569,0.00016362,91687.0,91681.0,0.0109084]
[1764326559772,0.42698362,91687.0,91686.0,0.05859]
[1764326559972,0.45316176,91687.0,91686.0,0.05859]
[1764326560172,0.46406946,91687.0,91686.0,0.05859]
[1764326566876,0.82486946,91687.0,91686.0,0.05859]
[1764326571381,0.38714176,91687.0,91686.0,0.05859]
[1764326572477,0.40555176,91687.0,91686.0,0.05859]
[1764326572877,0.37937362,91687.0,91686.0,0.05859]
[1764326574191,0.39778362,91687.0,91686.0,0.05859]
[1764326574879,0.37937362,91687.0,91686.0,0.05859]
[1764326575988,0.39778362,91687.0,91686.0,0.05859]
[1764326577781,0.00016362,91687.0,91686.0,0.05859]
[1764326578182,0.3608,91694.0,91693.0,0.04468]
[1764326578388,0.39762,91706.0,91705.0,0.0555856]
[1764326578690,0.3608,91706.0,91705.0,0.0555856]
[1764326580487,0.37921,91706.0,91705.0,0.0555856]
[1764326581188,0.39762,91706.0,91705.0,0.0555856]
[1764326587395,0.39762,91706.0,91705.0,0.07281228]
[1764326599905,0.03682,91706.0,91705.0,0.07281228]
[1764326617117,0.06301474,91706.0,91705.0,0.07281228]
[1764326617716,0.43301474,91706.0,91705.0,0.01722668]
[1764326617914,0.0477256,91705.0,91704.0,0.0109056]
[1764326618213,0.52392034,91705.0,91704.0,0.0340356]
[1764326618418,0.52392034,91705.0,91704.0,0.0570756]
[1764326619222,0.52392034,91705.0,91704.0,0.0701456]
[1764326619417,0.52392034,91705.0,91704.0,0.0711456]
[1764326625927,0.52392034,91705.0,91704.0,0.04717]
[1764326626226,0.52392034,91705.0,91704.0,0.001]
[1764326626625,0.056066,91701.0,91700.0,0.0164051]
[1764326626921,0.0477265,91697.0,91696.0,0.00016362]
[1764326627126,0.7985265,91697.0,91696.0,0.00016362]
[1764326628027,0.7985265,91697.0,91696.0,0.00116362]
[1764326628426,0.7985265,91697.0,91696.0,0.02429362]
[1764326628925,0.7985265,91697.0,91696.0,0.04733362]
[1764326630224,0.7985265,91697.0,91696.0,0.06324496]
[1764326630821,0.78762,91697.0,91696.0,0.06324496]
[1764326636628,0.43762,91697.0,91696.0,0.06324496]
[1764326639138,0.39762,91697.0,91696.0,0.06324496]
[1764326639436,0.4085265,91697.0,91696.0,0.06324496]
[1764326640627,0.37921,91697.0,91696.0,0.06324496]
[1764326640828,0.3608,91697.0,91696.0,0.06324496]
[1764326641436,0.39762,91697.0,91696.0,0.06324496]
[1764326646730,0.37921,91697.0,91696.0,0.06324496]
[1764326647039,0.39762,91697.0,91696.0,0.06324496]
[1764326649138,0.03682,91697.0,91696.0,0.06324496]
[1764326656241,0.0109065,91698.0,91697.0,0.0109065]
[1764326656445,0.0109065,91698.0,91696.0,0.06324496]
[1764326656446,0.0293161,91701.0,91700.0,0.04625]
[1764326656743,0.0477261,91701.0,91700.0,0.04625]
[1764326656944,0.0477261,91701.0,91700.0,0.0571559]
[1764326659341,0.03682,91701.0,91697.0,0.0109064]
[1764326659542,0.03682,91697.0,91696.0,0.02698156]
[1764326659847,0.03682,91697.0,91696.0,0.07323156]
[1764326664255,0.03682,91697.0,91696.0,0.01607496]
[1764326664549,0.03682,91697.0,91696.0,0.03937496]
[1764326665042,0.41682,91697.0,91696.0,0.03937496]
[1764326665550,0.41682,91697.0,91696.0,0.06232496]
[1764326667749,0.44310031,91697.0,91696.0,0.06232496]
[1764326668148,0.41682,91697.0,91696.0,0.06232496]
[1764326668651,0.44310048,91697.0,91696.0,0.06232496]
[1764326668839,0.41682,91697.0,91696.0,0.06232496]
[1764326669152,0.44310069,91697.0,91696.0,0.06232496]
[1764326671245,0.44310069,91697.0,91696.0,0.07323156]
[1764326677560,0.41682,91697.0,91696.0,0.07323156]
[1764326677756,0.44310201,91697.0,91696.0,0.07323156]
[1764326683980,0.44310201,91697.0,91696.0,0.02698156]
[1764326684778,0.44310201,91697.0,91696.0,0.04983156]
[1764326684979,0.44310201,91697.0,91696.0,0.03892496]
[1764326685374,0.44310201,91697.0,91696.0,0.01607496]
[1764326685778,0.61482201,91697.0,91696.0,0.01607496]
[1764326700282,0.97562201,91697.0,91696.0,0.00663988]
[1764326700489,0.03682,91681.0,91680.0,0.05901]
[1764326700680,0.4877284,91681.0,91680.0,0.05901]
[1764326700876,0.03682,91670.0,91665.0,0.0242303]
[1764326701082,0.42682,91670.0,91669.0,0.04580359]
[1764326701986,0.39,91670.0,91669.0,0.04580359]
[1764326702183,0.0109095,91672.0,91669.0,0.05080359]
[1764326702382,0.4677295,91672.0,91671.0,0.05702]
[1764326711087,0.4677295,91672.0,91671.0,0.04402]
[1764326711389,0.4677295,91672.0,91670.0,0.0109097]
[1764326711390,0.03682,91670.0,91669.0,0.05870897]
[1764326717701,0.0477297,91670.0,91669.0,0.06961887]
[1764326727302,0.03682,91670.0,91669.0,0.06961887]
[1764326727895,0.01841,91670.0,91669.0,0.06961887]
[1764326728095,0.3608,91673.0,91669.0,0.06961887]
[1764326728301,0.00834,91704.0,91678.0,0.0557188]
[1764326728302,0.00016362,91679.0,91678.0,0.0557188]
[1764326728703,0.0109067,91696.0,91683.0,0.0689682]
[1764326729002,0.0109067,91696.0,91695.0,0.0689668]
[1764326729003,0.0293167,91696.0,91695.0,0.0689668]
[1764326729203,0.05569168,91696.0,91695.0,0.0689668]
[1764326729510,0.07409415,91696.0,91695.0,0.0689668]
[1764326730110,0.07509415,91696.0,91695.0,0.0689668]
[1764326730305,0.0487267,91696.0,91695.0,0.0689668]
[1764326732213,0.03782,91696.0,91695.0,0.0689668]
[1764326733006,0.001,91696.0,91695.0,0.0689668]
[1764326734717,0.01941,91696.0,91695.0,0.08360349]
[1764326735516,0.03782,91696.0,91695.0,0.08360349]
[1764326738620,0.39862,91696.0,91695.0,0.08360349]
[1764326740617,0.39862,91696.0,91695.0,0.01463669]
[1764326740912,0.39862,91696.0,91695.0,0.0429]
[1764326740913,0.79862,91696.0,91695.0,0.0429]
[1764326741113,0.47862,91696.0,91695.0,0.0429]
[1764326742021,0.39862,91696.0,91695.0,0.0429]
[1764326743518,0.4095266,91696.0,91695.0,0.0538068]
[1764326749321,0.0487266,91696.0,91695.0,0.0538068]
[1764326749530,0.4095266,91696.0,91695.0,0.0538068]
[1764326750420,0.0487266,91696.0,91695.0,0.0538068]
[1764326750723,0.4095266,91696.0,91695.0,0.0538068]
[1764326754320,0.4095266,91696.0,91695.0,0.0670068]
[1764326755315,0.43576938,91696.0,91695.0,0.0670068]
[1764326757522,0.43576938,91696.0,91695.0,0.0561]
[1764326757724,0.047727,91693.0,91692.0,0.0429]
[1764326757928,0.07396978,91693.0,91692.0,0.0429]
[1764326758318,0.07396978,91693.0,91692.0,0.02114]
[1764326758723,0.0477274,91690.0,91689.0,0.05780391]
[1764326759030,0.44397018,91690.0,91689.0,0.05780391]
[1764326760431,0.44497018,91690.0,91689.0,0.05780391]
[1764326761129,0.44497018,91690.0,91689.0,0.01490391]
[1764326761426,0.0477277,91687.0,91686.0,0.00016362]
[1764326761733,0.82477048,91687.0,91686.0,0.00016362]
[1764326762528,0.82477048,91687.0,91686.0,0.01562819]
[1764326762727,0.82577048,91687.0,91686.0,0.00016362]
[1764326762924,0.82580285,91687.0,91686.0,0.00016362]
[1764326766736,0.82580285,91687.0,91686.0,0.01584006]
[1764326770331,0.82580285,91687.0,91686.0,0.0064391]
[1764326770537,0.0477297,91670.0,91669.0,0.04249359]
[1764326770733,0.4177297,91670.0,91669.0,0.04249359]
[1764326771840,0.4177297,91670.0,91669.0,0.0581316]
[1764326773941,0.4177297,91670.0,91669.0,0.0157516]
[1764326775440,0.4177297,91670.0,91669.0,0.0368416]
[1764326776843,0.4177297,91670.0,91669.0,0.0581316]
[1764326778246,0.5894897,91670.0,91669.0,0.0581316]
[1764326779940,0.5894897,91670.0,91669.0,0.0157516]
[1764326781144,0.5894897,91670.0,91669.0,0.0371716]
[1764326782541,0.5894897,91670.0,91669.0,0.0157516]
[1764326784034,0.0477308,91661.0,91660.0,0.00016362]
[1764326784247,0.9802908,91661.0,91660.0,0.01548924]
[1764326784439,0.9802908,91661.0,91660.0,0.06011924]
[1764326784637,0.9802908,91661.0,91660.0,0.01548924]
[1764326785040,0.98039798,91661.0,91660.0,0.01548924]
[1764326785236,0.98039798,91661.0,91660.0,0.01748924]
[1764326787136,0.98039798,91661.0,91660.0,0.03890924]
[1764326788945,1.34119798,91661.0,91660.0,0.03890924]
[1764326789339,1.36764573,91661.0,91660.0,0.03890924]
[1764326789546,1.36764573,91661.0,91660.0,0.01748924]
[1764326792348,1.36764573,91661.0,91660.0,0.03890924]
[1764326793044,1.36764573,91661.0,91660.0,0.07517924]
[1764326794567,1.36764573,91661.0,91660.0,0.06248924]
[1764326805369,0.64604573,91661.0,91660.0,0.06248924]
[1764326805861,1.36764573,91661.0,91660.0,0.06248924]
[1764326807563,0.72170718,91661.0,91660.0,0.06248924]
[1764326807760,0.36090718,91661.0,91660.0,0.06248924]
[1764326810069,0.37181798,91661.0,91660.0,0.06248924]
[1764326813373,0.39022798,91661.0,91660.0,0.06248924]
[1764326814274,0.40863798,91661.0,91660.0,0.06248924]
[1764326821571,0.40863798,91661.0,91660.0,0.06048924]
[1764326821774,0.40863798,91661.0,91660.0,0.06348924]
[1764326823080,0.40863798,91661.0,91660.0,0.06048924]
[1764326823276,0.40863798,91661.0,91660.0,0.06248924]
[1764326824876,0.00010718,91661.0,91660.0,0.06248924]
[1764326825079,0.3608,91674.0,91673.0,0.0455]
[1764326825283,0.3872208,91674.0,91673.0,0.0455]
[1764326825582,0.3608,91674.0,91673.0,0.0455]
[1764326825783,0.37921,91674.0,91673.0,0.0455]
[1764326825984,0.39762,91674.0,91673.0,0.0455]
[1764326826185,0.39762,91674.0,91673.0,0.0485]
[1764326832291,0.39762,91674.0,91673.0,0.0475]
[1764326833094,0.39762,91674.0,91673.0,0.06435435]
[1764326833486,0.83762,91674.0,91673.0,0.01885435]
[1764326833986,0.83762,91674.0,91673.0,0.01785435]
[1764326835286,0.83762,91674.0,91673.0,0.01685435]
[1764326835482,0.03682,91661.0,91660.0,0.04425362]
[1764326835678,0.0477308,91661.0,91660.0,0.04425362]
[1764326836080,0.0477308,91661.0,91660.0,0.05745362]
[1764326836484,0.0477308,91661.0,91660.0,0.06045362]
[1764326837589,0.0477308,91661.0,91660.0,0.04100626]
[1764326837888,0.0477308,91661.0,91660.0,0.06366626]
[1764326838092,0.0477308,91661.0,91660.0,0.07686626]
[1764326843498,0.4085308,91661.0,91660.0,0.07686626]
[1764326846398,0.0477308,91661.0,91660.0,0.07686626]
[1764326846599,0.4085308,91661.0,91660.0,0.07686626]
[1764326851710,0.39762,91661.0,91660.0,0.07686626]
[1764326852912,0.3608,91661.0,91660.0,0.07686626]
[1764326857524,0.37921,91661.0,91660.0,0.07686626]
[1764326857726,0.01841,91661.0,91660.0,0.07686626]
[1764326861429,0.03682,91661.0,91660.0,0.07686626]
[1764326864722,0.03682,91661.0,91660.0,0.07886626]
[1764326866827,0.03682,91661.0,91660.0,0.07486626]
[1764326867027,0.03682,91661.0,91660.0,0.07686626]
[1764326867228,0.03682,91661.0,91660.0,0.07786626]
[1764326867436,0.80762,91661.0,91660.0,0.01757626]
[1764326867626,0.80762,91661.0,91660.0,0.04163626]
[1764326867827,0.80762,91661.0,91660.0,0.06373626]
[1764326870034,0.80762,91661.0,91660.0,0.07464716]
[1764326880641,0.44682,91661.0,91660.0,0.07464716]
[1764326880944,0.80762,91661.0,91660.0,0.07464716]
[1764326884140,0.80762,91661.0,91660.0,0.06373626]
[1764326884346,0.80762,91661.0,91660.0,0.07464716]
[1764326895752,0.80762,91661.0,91660.0,0.06373626]
[1764326895949,0.80762,91661.0,91660.0,0.04063626]
[1764326896151,0.80762,91661.0,91660.0,0.06182626]
[1764326897450,0.8339406,91661.0,91660.0,0.06182626]
[1764326900460,0.4731406,91661.0,91660.0,0.06182626]
[1764326907561,0.44682,91661.0,91660.0,0.06182626]
[1764326910162,0.44682,91661.0,91660.0,0.07574626]
[1764326912662,0.03682,91661.0,91660.0,0.07574626]
[1764326921169,0.06314072,91661.0,91660.0,0.07574626]
[1764326926070,0.03682,91661.0,91660.0,0.07574626]
[1764326931969,0.03682,91661.0,91660.0,0.06182626]
[1764326932176,0.47300912,91661.0,91660.0,0.01957626]
[1764326932373,0.06300912,91661.0,91660.0,0.07673626]
[1764326932680,0.10682,91661.0,91660.0,0.07673626]
[1764326933472,0.3608,91662.0,91661.0,0.0553708]
[1764326934782,0.3608,91662.0,91661.0,0.0583708]
[1764326935385,0.4085307,91662.0,91661.0,0.0583708]
[1764326935683,0.3901207,91662.0,91661.0,0.0583708]
[1764326935983,0.37921,91662.0,91661.0,0.0583708]
[1764326936482,0.3901207,91662.0,91661.0,0.0583708]
[1764326938182,0.4085307,91662.0,91661.0,0.0583708]
[1764326938982,0.39762,91662.0,91661.0,0.0583708]
[1764326939178,0.3608,91662.0,91661.0,0.0583708]
[1764326939780,0.37921,91662.0,91661.0,0.0583708]
[1764326939982,0.39762,91662.0,91661.0,0.0583708]
[1764326940378,0.3608,91662.0,91661.0,0.0583708]
[1764326940786,0.37921,91662.0,91661.0,0.0583708]
[1764326940983,0.39762,91662.0,91661.0,0.0583708]
[1764326941980,0.39762,91662.0,91661.0,0.003]
[1764326942183,0.88378238,91662.0,91661.0,0.003]
[1764326942487,0.0477325,91647.0,91646.0,0.04577279]
[1764326943792,0.0477325,91647.0,91646.0,0.05277279]
[1764326944786,0.0477325,91647.0,91646.0,0.06883083]
[1764326945290,0.0477325,91647.0,91646.0,0.07974343]
[1764326949091,0.0477325,91647.0,91646.0,0.04635083]
[1764326949298,0.0477325,91647.0,91646.0,0.06883083]
[1764326951601,0.03682,91647.0,91646.0,0.06883083]
[1764326965814,0.0109124,91648.0,91647.0,0.05741]
[1764326966213,0.0293224,91648.0,91647.0,0.05741]
[1764326966410,0.0477324,91648.0,91647.0,0.05741]
[1764326966813,0.0477324,91648.0,91647.0,0.05841]
[1764326967625,0.0477324,91648.0,91647.0,0.06241]
[1764326978027,0.0477324,91648.0,91647.0,0.0733225]
[1764326981740,0.0293224,91648.0,91647.0,0.0733225]
[1764326981940,0.0109124,91648.0,91647.0,0.0733225]
[1764326982625,0.3608,91650.0,91649.0,0.0553022]
[1764326983436,0.00016362,91656.0,91655.0,0.0553015]
[1764326983634,0.02654552,91656.0,91655.0,0.0553015]
[1764326983831,0.00016362,91656.0,91655.0,0.0553015]
[1764326984834,0.00016362,91656.0,91655.0,0.0573015]
[1764326985033,0.00016362,91656.0,91655.0,0.0583015]
[1764326986338,0.00016362,91656.0,91655.0,0.0526015]
[1764326987537,0.02652707,91656.0,91655.0,0.0526015]
[1764326988646,0.06334707,91656.0,91655.0,0.0526015]
[1764326991941,0.07425847,91656.0,91655.0,0.0526015]
[1764326993241,0.02652707,91656.0,91655.0,0.0526015]
[1764326993846,0.04493707,91656.0,91655.0,0.0526015]
[1764326994246,0.06334707,91656.0,91655.0,0.0526015]
[1764326997644,0.03698362,91656.0,91655.0,0.0526015]
[1764327000152,0.03698362,91656.0,91655.0,0.0527015]
[1764327000553,0.03698362,91656.0,91655.0,0.04749]
[1764327000754,0.47698362,91656.0,91655.0,0.02514]
[1764327001154,0.47698362,91656.0,91655.0,0.0031]
[1764327001350,0.21698362,91656.0,91655.0,0.04749]
[1764327002249,0.44698362,91656.0,91655.0,0.04749]
[1764327003251,0.44698362,91656.0,91655.0,0.0031]
[1764327003556,0.47334129,91656.0,91655.0,0.0031]
[1764327005257,0.47334129,91656.0,91655.0,0.02454]
[1764327008159,0.47334129,91656.0,91655.0,0.0031]
[1764327010666,0.48168129,91656.0,91655.0,0.0031]
[1764327016070,0.47334129,91656.0,91655.0,0.0031]
[1764327018465,1.19494129,91656.0,91655.0,0.0031]
[1764327030167,1.19527752,91656.0,91655.0,0.0031]
[1764327034573,1.19527752,91656.0,91655.0,0.02607]
[1764327036071,1.19527752,91656.0,91655.0,0.0031]
[1764327036973,1.19527752,91656.0,91655.0,0.02607]
[1764327038980,0.47367752,91656.0,91655.0,0.02607]
[1764327039178,1.19527752,91656.0,91655.0,0.02607]
[1764327039479,0.47367752,91656.0,91655.0,0.02607]
[1764327039674,1.19527752,91656.0,91655.0,0.02607]
[1764327040180,1.19527752,91656.0,91655.0,0.04879]
[1764327040878,1.36707752,91656.0,91655.0,0.04879]
[1764327042185,1.36707752,91656.0,91655.0,0.04779]
[1764327043068,1.00627752,91656.0,91655.0,0.04779]
[1764327045169,0.42447752,91656.0,91655.0,0.04779]
[1764327045376,1.03627752,91656.0,91655.0,0.04779]
[1764327046578,0.86447752,91656.0,91655.0,0.04779]
[1764327046779,1.03627752,91656.0,91655.0,0.04779]
[1764327050180,0.38765752,91656.0,91655.0,0.04779]
[1764327050387,0.14156917,91665.0,91664.0,0.04569]
[1764327050575,0.0109102,91666.0,91665.0,0.05892]
[1764327050778,0.0293202,91666.0,91665.0,0.05892]
[1764327051383,0.0477302,91666.0,91665.0,0.05892]
[1764327051786,0.0487302,91666.0,91665.0,0.05892]
[1764327054084,0.4287302,91666.0,91665.0,0.05892]
[1764327055886,0.4287302,91666.0,91665.0,0.07587553]
[1764327060084,0.0887302,91666.0,91665.0,0.07587553]
[1764327060284,0.0487302,91666.0,91665.0,0.07587553]
[1764327060689,0.0487302,91666.0,91665.0,0.08678583]
[1764327061087,0.03782,91666.0,91665.0,0.08678583]
[1764327062492,0.0642977,91666.0,91665.0,0.08678583]
[1764327063798,0.0642977,91666.0,91665.0,0.07587553]
[1764327064291,0.5142977,91666.0,91665.0,0.07587553]
[1764327064992,0.5132977,91666.0,91665.0,0.07587553]
[1764327065195,0.5142977,91666.0,91665.0,0.07587553]
[1764327065395,0.5142977,91666.0,91665.0,0.06264553]
[1764327065793,0.5152977,91666.0,91665.0,0.06264553]
[1764327067894,0.5152977,91666.0,91665.0,0.07614553]